[Event "Titled Tuesday Blitz March 01 Early 2022"]
[White "Durarbayli, Vasif"]
[Black "Csonka, Balazs"]
[WhiteFideId "13402935"]
[BlackFideId "742910"]
[WhiteElo "2528"]
[BlackElo "2404"]
[Result "1-0"]
[Round "11"]
[TimeControl "180+1"]
[Date "2022.03.01"]
[WhiteClock "0:00:05"]
[BlackClock "0:00:03"]

1. e4 {[%clk 0:03:00]}  e5 {[%clk 0:02:58]} 2. Nf3 {[%clk 0:03:00]}  Nc6 {[%clk 0:02:59]} 3. Bb5 {[%clk 0:02:57]}  Nf6 {[%clk 0:02:58]} 4. d3 {[%clk 0:02:56]}  Ne7 {[%clk 0:02:49]} 5. Nc3 {[%clk 0:02:52]}  c6 {[%clk 0:02:46]} 6. Ba4 {[%clk 0:02:51]}  d6 {[%clk 0:02:42]} 7. d4 {[%clk 0:02:47]}  Ng6 {[%clk 0:02:36]} 8. h3 {[%clk 0:02:45]}  Be7 {[%clk 0:02:28]} 9. O-O {[%clk 0:02:43]}  O-O {[%clk 0:02:28]} 10. Bb3 {[%clk 0:02:43]}  h6 {[%clk 0:02:20]} 11. a4 {[%clk 0:02:39]}  a5 {[%clk 0:02:15]} 12. Re1 {[%clk 0:02:37]}  Re8 {[%clk 0:02:13]} 13. Be3 {[%clk 0:02:30]}  Bf8 {[%clk 0:02:07]} 14. Qd3 {[%clk 0:02:01]}  Nh5 {[%clk 0:01:37]} 15. dxe5 {[%clk 0:01:49]}  dxe5 {[%clk 0:01:21]} 16. Qxd8 {[%clk 0:01:44]}  Rxd8 {[%clk 0:01:18]} 17. Red1 {[%clk 0:01:31]}  Re8 {[%clk 0:01:12]} 18. Nd2 {[%clk 0:01:28]}  Nhf4 {[%clk 0:00:47]} 19. Nc4 {[%clk 0:01:25]}  Be6 {[%clk 0:00:46]} 20. Kh2 {[%clk 0:01:09]}  Bb4 {[%clk 0:00:43]} 21. Na2 {[%clk 0:01:02]}  Be7 {[%clk 0:00:35]} 22. Nxe5 {[%clk 0:00:47]}  Bxb3 {[%clk 0:00:35]} 23. cxb3 {[%clk 0:00:44]}  Bf6 {[%clk 0:00:34]} 24. Nxg6 {[%clk 0:00:30]}  Nxg6 {[%clk 0:00:33]} 25. Nc3 {[%clk 0:00:31]}  Bxc3 {[%clk 0:00:11]} 26. bxc3 {[%clk 0:00:32]}  Rxe4 {[%clk 0:00:11]} 27. Rd7 {[%clk 0:00:32]}  b5 {[%clk 0:00:11]} 28. Rc7 {[%clk 0:00:26]}  Ra6 {[%clk 0:00:02]} 29. Bd4 {[%clk 0:00:17]}  Nf4 {[%clk 0:00:02]} 30. Kg3 {[%clk 0:00:10]}  Ne6 {[%clk 0:00:02]} 31. Kf3 {[%clk 0:00:10]}  Nxc7 {[%clk 0:00:01]} 32. Kxe4 {[%clk 0:00:09]}  Ne6 {[%clk 0:00:02]} 33. axb5 {[%clk 0:00:09]}  cxb5 {[%clk 0:00:02]} 34. Be3 {[%clk 0:00:10]}  a4 {[%clk 0:00:02]} 35. Kd5 {[%clk 0:00:07]}  Ra8 {[%clk 0:00:02]} 36. bxa4 {[%clk 0:00:07]}  bxa4 {[%clk 0:00:02]} 37. Kc4 {[%clk 0:00:07]}  Kf8 {[%clk 0:00:03]} 38. Kb4 {[%clk 0:00:07]}  Rb8+ {[%clk 0:00:03]} 39. Ka3 {[%clk 0:00:07]}  Rb3+ {[%clk 0:00:03]} 40. Kxa4 {[%clk 0:00:07]}  Rxc3 {[%clk 0:00:04]} 41. Ra2 {[%clk 0:00:07]}  Rc8 {[%clk 0:00:04]} 42. Kb4 {[%clk 0:00:08]}  Rb8+ {[%clk 0:00:04]} 43. Kc4 {[%clk 0:00:08]}  Rc8+ {[%clk 0:00:05]} 44. Kd3 {[%clk 0:00:08]}  Rd8+ {[%clk 0:00:05]} 45. Ke2 {[%clk 0:00:08]}  Nd4+ {[%clk 0:00:05]} 46. Kf1 {[%clk 0:00:08]}  Ne6 {[%clk 0:00:05]} 47. g3 {[%clk 0:00:08]}  Re8 {[%clk 0:00:05]} 48. Ra7 {[%clk 0:00:08]}  Kg8 {[%clk 0:00:06]} 49. h4 {[%clk 0:00:08]}  Nf8 {[%clk 0:00:06]} 50. h5 {[%clk 0:00:07]}  Nh7 {[%clk 0:00:06]} 51. Kg2 {[%clk 0:00:07]}  Nf6 {[%clk 0:00:06]} 52. Ra5 {[%clk 0:00:07]}  Ng4 {[%clk 0:00:06]} 53. Bd4 {[%clk 0:00:05]}  Nf6 {[%clk 0:00:06]} 54. Kf3 {[%clk 0:00:04]}  Rd8 {[%clk 0:00:06]} 55. Be3 {[%clk 0:00:04]}  Nd5 {[%clk 0:00:05]} 56. Bc5 {[%clk 0:00:03]}  Nf6 {[%clk 0:00:05]} 57. g4 {[%clk 0:00:03]}  Rd3+ {[%clk 0:00:04]} 58. Be3 {[%clk 0:00:03]}  Rd8 {[%clk 0:00:05]} 59. Ra7 {[%clk 0:00:03]}  Nd5 {[%clk 0:00:04]} 60. Bc5 {[%clk 0:00:03]}  Nf6 {[%clk 0:00:04]} 61. Ra6 {[%clk 0:00:04]}  Rc8 {[%clk 0:00:04]} 62. Be3 {[%clk 0:00:04]}  Re8 {[%clk 0:00:04]} 63. Bxh6 {[%clk 0:00:04]}  Nxg4 {[%clk 0:00:03]} 64. Kxg4 {[%clk 0:00:04]}  gxh6 {[%clk 0:00:04]} 65. Rxh6 {[%clk 0:00:05]}  Kg7 {[%clk 0:00:04]} 66. Ra6 {[%clk 0:00:05]}  Re2 {[%clk 0:00:04]} 67. f4 {[%clk 0:00:06]}  Rh2 {[%clk 0:00:03]} 68. Kg5 {[%clk 0:00:06]}  Rg2+ {[%clk 0:00:04]} 69. Kf5 {[%clk 0:00:06]}  Rf2 {[%clk 0:00:04]} 70. h6+ {[%clk 0:00:07]}  Kh7 {[%clk 0:00:04]} 71. Ra7 {[%clk 0:00:06]}  Kxh6 {[%clk 0:00:04]} 72. Rxf7 {[%clk 0:00:05]}  Ra2 {[%clk 0:00:04]} 73. Re7 {[%clk 0:00:05]}  Ra5+ {[%clk 0:00:02]} 74. Kf6 {[%clk 0:00:05]}  Ra4 {[%clk 0:00:02]} 75. f5 {[%clk 0:00:05]}  Ra8 {[%clk 0:00:02]} 76. Kf7 {[%clk 0:00:05]}  Ra5 {[%clk 0:00:03]} 77. f6 {[%clk 0:00:05]}  Ra8 {[%clk 0:00:03]} 78. Re8 {[%clk 0:00:05]}  Ra7+ {[%clk 0:00:03]} 79. Re7 {[%clk 0:00:05]}  Ra8 {[%clk 0:00:03]} 80. Rd7 {[%clk 0:00:05]}  Kg5 {[%clk 0:00:03]} 81. Kg7 {[%clk 0:00:05]} 1-0


[Site "https://www.chess.com"]

[Event "Titled Tuesday Blitz March 01 Early 2022"]
[White "Garriga Cazorla, Pere"]
[Black "Ter-Sahakyan, Samvel"]
[WhiteFideId "32011601"]
[BlackFideId "13302531"]
[WhiteElo "2458"]
[BlackElo "2592"]
[Result "1/2-1/2"]
[Round "11"]
[TimeControl "180+1"]
[Date "2022.03.01"]
[WhiteClock "0:01:06"]
[BlackClock "0:01:00"]

1. d4 {[%clk 0:03:00]}  Nf6 {[%clk 0:02:59]} 2. c4 {[%clk 0:03:00]}  e6 {[%clk 0:03:00]} 3. Nc3 {[%clk 0:02:59]}  Bb4 {[%clk 0:02:55]} 4. Qc2 {[%clk 0:02:58]}  O-O {[%clk 0:02:53]} 5. Nf3 {[%clk 0:02:57]}  d5 {[%clk 0:02:51]} 6. cxd5 {[%clk 0:02:58]}  exd5 {[%clk 0:02:51]} 7. Bg5 {[%clk 0:02:58]}  c5 {[%clk 0:02:41]} 8. dxc5 {[%clk 0:02:58]}  Be6 {[%clk 0:02:38]} 9. e3 {[%clk 0:02:58]}  Nbd7 {[%clk 0:02:33]} 10. Be2 {[%clk 0:02:56]}  Nxc5 {[%clk 0:02:26]} 11. O-O {[%clk 0:02:53]}  Rc8 {[%clk 0:02:24]} 12. Nd4 {[%clk 0:02:34]}  Nce4 {[%clk 0:02:18]} 13. Bxf6 {[%clk 0:02:17]}  Nxf6 {[%clk 0:02:13]} 14. Rac1 {[%clk 0:02:16]}  Bxc3 {[%clk 0:02:06]} 15. bxc3 {[%clk 0:02:14]}  Qe7 {[%clk 0:02:01]} 16. Rfd1 {[%clk 0:02:10]}  Rfd8 {[%clk 0:01:47]} 17. Qb3 {[%clk 0:02:10]}  b6 {[%clk 0:01:46]} 18. Ba6 {[%clk 0:01:56]}  Rc7 {[%clk 0:01:45]} 19. Nxe6 {[%clk 0:01:54]}  Qxe6 {[%clk 0:01:45]} 20. c4 {[%clk 0:01:54]}  h6 {[%clk 0:01:41]} 21. h3 {[%clk 0:01:49]}  Rc5 {[%clk 0:01:37]} 22. cxd5 {[%clk 0:01:41]}  Rdxd5 {[%clk 0:01:27]} 23. Rxc5 {[%clk 0:01:31]}  Rxd1+ {[%clk 0:01:22]} 24. Qxd1 {[%clk 0:01:30]}  bxc5 {[%clk 0:01:22]} 25. Qd8+ {[%clk 0:01:18]}  Kh7 {[%clk 0:01:20]} 26. Qd3+ {[%clk 0:01:17]}  g6 {[%clk 0:01:18]} 27. Bc4 {[%clk 0:01:18]}  Qe7 {[%clk 0:01:11]} 28. Qc3 {[%clk 0:01:16]}  h5 {[%clk 0:01:06]} 29. Qb2 {[%clk 0:01:13]}  Ne4 {[%clk 0:01:05]} 30. Bd5 {[%clk 0:01:07]}  Nf6 {[%clk 0:01:02]} 31. Bc4 {[%clk 0:01:06]}  Ne4 {[%clk 0:01:00]} 32. Bd5 {[%clk 0:01:06]} 1/2-1/2


[Site "https://www.chess.com"]

[Event "Titled Tuesday Blitz March 01 Early 2022"]
[White "Gatterer, Florian"]
[Black "Sovetbekova, Nurai"]
[WhiteFideId "811688"]
[BlackFideId "13801910"]
[WhiteElo "2218"]
[BlackElo "1545"]
[Result "1-0"]
[Round "11"]
[TimeControl "180+1"]
[Date "2022.03.01"]
[WhiteClock "0:01:07"]
[BlackClock "0:00:06"]

1. c4 {[%clk 0:03:00]}  e5 {[%clk 0:02:52]} 2. g3 {[%clk 0:02:57]}  Nf6 {[%clk 0:02:48]} 3. Bg2 {[%clk 0:02:57]}  d5 {[%clk 0:02:36]} 4. cxd5 {[%clk 0:02:56]}  Nxd5 {[%clk 0:02:37]} 5. Nf3 {[%clk 0:02:56]}  Nc6 {[%clk 0:02:35]} 6. d4 {[%clk 0:02:35]}  Bb4+ {[%clk 0:02:19]} 7. Bd2 {[%clk 0:02:33]}  e4 {[%clk 0:02:00]} 8. Ne5 {[%clk 0:02:31]}  e3 {[%clk 0:01:44]} 9. fxe3 {[%clk 0:02:14]}  Nxe3 {[%clk 0:01:26]} 10. Bxc6+ {[%clk 0:02:13]}  bxc6 {[%clk 0:01:22]} 11. Qa4 {[%clk 0:02:12]}  Bxd2+ {[%clk 0:01:02]} 12. Kxd2 {[%clk 0:01:58]}  Nf5 {[%clk 0:00:42]} 13. Qxc6+ {[%clk 0:01:54]}  Kf8 {[%clk 0:00:41]} 14. Qc5+ {[%clk 0:01:43]}  Kg8 {[%clk 0:00:39]} 15. e3 {[%clk 0:01:44]}  Bb7 {[%clk 0:00:19]} 16. Rf1 {[%clk 0:01:43]}  Qg5 {[%clk 0:00:18]} 17. Rf4 {[%clk 0:01:42]}  Rd8 {[%clk 0:00:15]} 18. Qxc7 {[%clk 0:01:32]}  Nd6 {[%clk 0:00:10]} 19. Nc3 {[%clk 0:01:24]}  Rc8 {[%clk 0:00:10]} 20. Qd7 {[%clk 0:01:12]}  f6 {[%clk 0:00:06]} 21. Qe6+ {[%clk 0:01:08]}  Kf8 {[%clk 0:00:06]} 22. Nd7# {[%clk 0:01:07]} 1-0


[Site "https://www.chess.com"]

[Event "Titled Tuesday Blitz March 01 Early 2022"]
[White "Gormally, Daniel W"]
[Black "Manolache, Marius"]
[WhiteFideId "406465"]
[BlackFideId "1201530"]
[WhiteElo "2543"]
[BlackElo "2389"]
[Result "0-1"]
[Round "11"]
[TimeControl "180+1"]
[Date "2022.03.01"]
[WhiteClock "0:00:25"]
[BlackClock "0:01:13"]

1. d4 {[%clk 0:02:58]}  Nf6 {[%clk 0:02:59]} 2. c4 {[%clk 0:02:56]}  g6 {[%clk 0:02:59]} 3. Nc3 {[%clk 0:02:54]}  Bg7 {[%clk 0:02:59]} 4. e4 {[%clk 0:02:54]}  O-O {[%clk 0:03:00]} 5. Nge2 {[%clk 0:02:54]}  d6 {[%clk 0:03:00]} 6. h3 {[%clk 0:02:42]}  a6 {[%clk 0:02:59]} 7. Ng3 {[%clk 0:02:29]}  c6 {[%clk 0:02:58]} 8. Be2 {[%clk 0:02:19]}  b5 {[%clk 0:02:58]} 9. e5 {[%clk 0:02:19]}  Ne8 {[%clk 0:02:52]} 10. f4 {[%clk 0:02:12]}  Qc7 {[%clk 0:02:44]} 11. O-O {[%clk 0:02:10]}  Bb7 {[%clk 0:02:36]} 12. Be3 {[%clk 0:02:10]}  c5 {[%clk 0:02:25]} 13. dxc5 {[%clk 0:01:36]}  dxe5 {[%clk 0:02:21]} 14. f5 {[%clk 0:01:22]}  Nd7 {[%clk 0:02:17]} 15. Nd5 {[%clk 0:01:19]}  Bxd5 {[%clk 0:02:16]} 16. cxd5 {[%clk 0:01:20]}  Nef6 {[%clk 0:02:00]} 17. Rc1 {[%clk 0:01:14]}  Rfd8 {[%clk 0:01:59]} 18. fxg6 {[%clk 0:01:11]}  hxg6 {[%clk 0:01:58]} 19. Bf3 {[%clk 0:01:07]}  Rab8 {[%clk 0:01:53]} 20. d6 {[%clk 0:01:05]}  exd6 {[%clk 0:01:51]} 21. cxd6 {[%clk 0:01:05]}  Qa5 {[%clk 0:01:50]} 22. Qb3 {[%clk 0:01:04]}  Qa4 {[%clk 0:01:46]} 23. Ne4 {[%clk 0:00:53]}  Qxb3 {[%clk 0:01:44]} 24. axb3 {[%clk 0:00:53]}  Nxe4 {[%clk 0:01:42]} 25. Bxe4 {[%clk 0:00:53]}  Nf6 {[%clk 0:01:42]} 26. Rxf6 {[%clk 0:00:44]}  Bxf6 {[%clk 0:01:42]} 27. Rc6 {[%clk 0:00:44]}  a5 {[%clk 0:01:24]} 28. Bb6 {[%clk 0:00:41]}  Rd7 {[%clk 0:01:23]} 29. Bxa5 {[%clk 0:00:39]}  Bd8 {[%clk 0:01:20]} 30. Bc3 {[%clk 0:00:32]}  Rb6 {[%clk 0:01:17]} 31. Bxe5 {[%clk 0:00:30]}  Rxc6 {[%clk 0:01:16]} 32. Bxc6 {[%clk 0:00:29]}  Bb6+ {[%clk 0:01:15]} 33. Kf1 {[%clk 0:00:29]}  Ra7 {[%clk 0:01:15]} 34. d7 {[%clk 0:00:26]}  Bd8 {[%clk 0:01:14]} 35. Bxb5 {[%clk 0:00:25]}  Ra5 {[%clk 0:01:13]} 0-1


[Site "https://www.chess.com"]

[Event "Titled Tuesday Blitz March 01 Early 2022"]
[White "Goryachkina, Aleksandra"]
[Black "Batsiashvili, Nino"]
[WhiteFideId "4147103"]
[BlackFideId "13602993"]
[WhiteElo "2426"]
[BlackElo "2230"]
[Result "1/2-1/2"]
[Round "11"]
[TimeControl "180+1"]
[Date "2022.03.01"]
[WhiteClock "0:00:06"]
[BlackClock "0:00:13"]

1. e4 {[%clk 0:02:59]}  e5 {[%clk 0:03:00]} 2. Nf3 {[%clk 0:02:59]}  Nc6 {[%clk 0:03:00]} 3. d4 {[%clk 0:02:59]}  exd4 {[%clk 0:03:01]} 4. Nxd4 {[%clk 0:03:00]}  Nf6 {[%clk 0:03:00]} 5. Nxc6 {[%clk 0:03:00]}  bxc6 {[%clk 0:03:00]} 6. e5 {[%clk 0:03:00]}  Qe7 {[%clk 0:03:01]} 7. Qe2 {[%clk 0:03:00]}  Nd5 {[%clk 0:03:01]} 8. g3 {[%clk 0:03:00]}  a5 {[%clk 0:02:51]} 9. Bg2 {[%clk 0:03:00]}  g6 {[%clk 0:02:38]} 10. O-O {[%clk 0:02:54]}  Bg7 {[%clk 0:02:38]} 11. c4 {[%clk 0:02:51]}  Nb6 {[%clk 0:02:31]} 12. Re1 {[%clk 0:02:41]}  O-O {[%clk 0:02:30]} 13. Nc3 {[%clk 0:02:32]}  Ba6 {[%clk 0:02:27]} 14. b3 {[%clk 0:02:28]}  Rfe8 {[%clk 0:02:18]} 15. Bb2 {[%clk 0:01:52]}  Qxe5 {[%clk 0:02:17]} 16. Qd2 {[%clk 0:01:42]}  Qd4 {[%clk 0:02:02]} 17. Qc2 {[%clk 0:01:41]}  d5 {[%clk 0:01:28]} 18. Na4 {[%clk 0:01:38]}  Qg4 {[%clk 0:01:21]} 19. Nxb6 {[%clk 0:01:35]}  cxb6 {[%clk 0:01:19]} 20. cxd5 {[%clk 0:01:35]}  cxd5 {[%clk 0:01:16]} 21. Bxg7 {[%clk 0:01:32]}  Kxg7 {[%clk 0:01:14]} 22. Qb2+ {[%clk 0:01:32]}  Kg8 {[%clk 0:00:59]} 23. Bxd5 {[%clk 0:01:32]}  Rxe1+ {[%clk 0:00:41]} 24. Rxe1 {[%clk 0:01:32]}  Rf8 {[%clk 0:00:42]} 25. Qf6 {[%clk 0:01:28]}  Qd7 {[%clk 0:00:34]} 26. Qxb6 {[%clk 0:01:24]}  Qxd5 {[%clk 0:00:22]} 27. Qxa6 {[%clk 0:01:24]}  Ra8 {[%clk 0:00:20]} 28. Qe2 {[%clk 0:01:10]}  a4 {[%clk 0:00:19]} 29. bxa4 {[%clk 0:01:10]}  Qa5 {[%clk 0:00:18]} 30. Qe4 {[%clk 0:00:50]}  Qxa4 {[%clk 0:00:18]} 31. Qxa4 {[%clk 0:00:50]}  Rxa4 {[%clk 0:00:19]} 32. Re2 {[%clk 0:00:51]}  Kg7 {[%clk 0:00:19]} 33. Kf1 {[%clk 0:00:51]}  Kf6 {[%clk 0:00:19]} 34. h4 {[%clk 0:00:50]}  Kf5 {[%clk 0:00:19]} 35. Kg2 {[%clk 0:00:47]}  h5 {[%clk 0:00:18]} 36. Rb2 {[%clk 0:00:42]}  Ra3 {[%clk 0:00:16]} 37. Kf1 {[%clk 0:00:40]}  f6 {[%clk 0:00:16]} 38. Ke2 {[%clk 0:00:40]}  Kg4 {[%clk 0:00:15]} 39. Rc2 {[%clk 0:00:24]}  g5 {[%clk 0:00:15]} 40. hxg5 {[%clk 0:00:18]}  fxg5 {[%clk 0:00:16]} 41. Rb2 {[%clk 0:00:14]}  h4 {[%clk 0:00:15]} 42. gxh4 {[%clk 0:00:14]}  gxh4 {[%clk 0:00:16]} 43. Kf1 {[%clk 0:00:14]}  h3 {[%clk 0:00:14]} 44. Kg1 {[%clk 0:00:14]}  Kf4 {[%clk 0:00:13]} 45. Kh2 {[%clk 0:00:14]}  Kg4 {[%clk 0:00:14]} 46. Rb4+ {[%clk 0:00:14]}  Kf5 {[%clk 0:00:14]} 47. Rb2 {[%clk 0:00:11]}  Kf4 {[%clk 0:00:14]} 48. Re2 {[%clk 0:00:07]}  Kg4 {[%clk 0:00:13]} 49. Rb2 {[%clk 0:00:06]}  Kf4 {[%clk 0:00:14]} 50. Rb4+ {[%clk 0:00:06]}  Kf5 {[%clk 0:00:13]} 1/2-1/2


[Site "https://www.chess.com"]

[Event "Titled Tuesday Blitz March 01 Early 2022"]
[White "Gunina, Valentina"]
[Black "Zierk, Steven"]
[WhiteFideId "4167570"]
[BlackFideId "2034255"]
[WhiteElo "2465"]
[BlackElo "2494"]
[Result "0-1"]
[Round "11"]
[TimeControl "180+1"]
[Date "2022.03.01"]
[WhiteClock "0:00:03"]
[BlackClock "0:00:04"]

1. d4 {[%clk 0:03:00]}  d5 {[%clk 0:02:57]} 2. c4 {[%clk 0:03:00]}  dxc4 {[%clk 0:02:58]} 3. Nf3 {[%clk 0:02:59]}  Nf6 {[%clk 0:02:58]} 4. e3 {[%clk 0:02:59]}  e6 {[%clk 0:02:57]} 5. Bxc4 {[%clk 0:02:59]}  a6 {[%clk 0:02:58]} 6. O-O {[%clk 0:02:58]}  c5 {[%clk 0:02:58]} 7. Re1 {[%clk 0:02:39]}  Be7 {[%clk 0:02:44]} 8. e4 {[%clk 0:02:31]}  b5 {[%clk 0:02:43]} 9. Bd3 {[%clk 0:02:26]}  cxd4 {[%clk 0:02:41]} 10. e5 {[%clk 0:02:26]}  Nd5 {[%clk 0:02:40]} 11. Nxd4 {[%clk 0:02:25]}  Bb7 {[%clk 0:02:37]} 12. Nc3 {[%clk 0:02:22]}  Nb4 {[%clk 0:02:15]} 13. Be4 {[%clk 0:02:20]}  Bxe4 {[%clk 0:02:10]} 14. Nxe4 {[%clk 0:02:20]}  N8c6 {[%clk 0:02:09]} 15. Be3 {[%clk 0:02:04]}  Nxd4 {[%clk 0:02:02]} 16. Bxd4 {[%clk 0:02:03]}  O-O {[%clk 0:02:01]} 17. Re3 {[%clk 0:01:24]}  Nc2 {[%clk 0:01:51]} 18. Qxc2 {[%clk 0:01:20]}  Qxd4 {[%clk 0:01:51]} 19. Ng3 {[%clk 0:01:04]}  Rac8 {[%clk 0:01:45]} 20. Qe2 {[%clk 0:01:03]}  Rfd8 {[%clk 0:01:40]} 21. Re1 {[%clk 0:00:54]}  Bb4 {[%clk 0:01:36]} 22. Rf1 {[%clk 0:00:50]}  Qd2 {[%clk 0:01:28]} 23. Qg4 {[%clk 0:00:50]}  Rc1 {[%clk 0:01:23]} 24. Re2 {[%clk 0:00:31]}  Rxf1+ {[%clk 0:01:14]} 25. Nxf1 {[%clk 0:00:31]}  Qc1 {[%clk 0:01:01]} 26. Qxb4 {[%clk 0:00:22]}  Rd1 {[%clk 0:01:00]} 27. h3 {[%clk 0:00:23]}  Rxf1+ {[%clk 0:01:00]} 28. Kh2 {[%clk 0:00:23]}  Rh1+ {[%clk 0:00:50]} 29. Kg3 {[%clk 0:00:23]}  Rd1 {[%clk 0:00:46]} 30. Qe7 {[%clk 0:00:20]}  g5 {[%clk 0:00:24]} 31. Re3 {[%clk 0:00:18]}  Qxb2 {[%clk 0:00:08]} 32. Qxg5+ {[%clk 0:00:15]}  Kf8 {[%clk 0:00:08]} 33. Rf3 {[%clk 0:00:14]}  Rd5 {[%clk 0:00:07]} 34. Qh6+ {[%clk 0:00:12]}  Ke8 {[%clk 0:00:05]} 35. Re3 {[%clk 0:00:07]}  Rxe5 {[%clk 0:00:04]} 36. Rb3 {[%clk 0:00:08]}  Qxa2 {[%clk 0:00:03]} 37. Rd3 {[%clk 0:00:07]}  Qc4 {[%clk 0:00:02]} 38. Qxh7 {[%clk 0:00:07]}  Rg5+ {[%clk 0:00:02]} 39. Kh2 {[%clk 0:00:08]}  Qf4+ {[%clk 0:00:02]} 40. Kg1 {[%clk 0:00:08]}  Qc1+ {[%clk 0:00:02]} 41. Kh2 {[%clk 0:00:08]}  Qf4+ {[%clk 0:00:02]} 42. Kg1 {[%clk 0:00:08]}  Qc1+ {[%clk 0:00:03]} 43. Kh2 {[%clk 0:00:09]}  Qc7+ {[%clk 0:00:04]} 44. g3 {[%clk 0:00:09]}  Rd5 {[%clk 0:00:04]} 45. Qh8+ {[%clk 0:00:09]}  Ke7 {[%clk 0:00:05]} 46. Qh4+ {[%clk 0:00:09]}  Kd7 {[%clk 0:00:05]} 47. Rf3 {[%clk 0:00:10]}  Kc6 {[%clk 0:00:05]} 48. Rc3+ {[%clk 0:00:09]}  Rc5 {[%clk 0:00:05]} 49. Rf3 {[%clk 0:00:08]}  Qd7 {[%clk 0:00:05]} 50. Qe4+ {[%clk 0:00:08]}  Kb6 {[%clk 0:00:06]} 51. Qe3 {[%clk 0:00:08]}  f5 {[%clk 0:00:06]} 52. h4 {[%clk 0:00:08]}  b4 {[%clk 0:00:06]} 53. Rf4 {[%clk 0:00:08]}  Qb5 {[%clk 0:00:06]} 54. h5 {[%clk 0:00:08]}  b3 {[%clk 0:00:04]} 55. Qxe6+ {[%clk 0:00:07]}  Rc6 {[%clk 0:00:04]} 56. Qe3+ {[%clk 0:00:07]}  Kb7 {[%clk 0:00:04]} 57. Qe7+ {[%clk 0:00:05]}  Rc7 {[%clk 0:00:03]} 58. Qe1 {[%clk 0:00:05]}  b2 {[%clk 0:00:04]} 59. Qh1+ {[%clk 0:00:04]}  Ka7 {[%clk 0:00:04]} 60. Qb1 {[%clk 0:00:03]}  Rc1 {[%clk 0:00:04]} 0-1


[Site "https://www.chess.com"]

[Event "Titled Tuesday Blitz March 01 Early 2022"]
[White "Heinemann, Josefine"]
[Black "Kadam, Om Manish"]
[WhiteFideId "12900460"]
[BlackFideId "45076294"]
[WhiteElo "2300"]
[BlackElo "1729"]
[Result "1/2-1/2"]
[Round "11"]
[TimeControl "180+1"]
[Date "2022.03.01"]
[WhiteClock "0:01:00"]
[BlackClock "0:00:19"]

1. Nf3 {[%clk 0:03:00]}  Nf6 {[%clk 0:02:59]} 2. g3 {[%clk 0:02:59]}  g6 {[%clk 0:02:59]} 3. Bg2 {[%clk 0:02:59]}  Bg7 {[%clk 0:02:58]} 4. O-O {[%clk 0:03:00]}  O-O {[%clk 0:02:58]} 5. d4 {[%clk 0:03:00]}  d5 {[%clk 0:02:59]} 6. c4 {[%clk 0:03:00]}  c6 {[%clk 0:02:58]} 7. cxd5 {[%clk 0:02:59]}  cxd5 {[%clk 0:02:59]} 8. Ne5 {[%clk 0:03:00]}  Nc6 {[%clk 0:02:59]} 9. Nxc6 {[%clk 0:03:00]}  bxc6 {[%clk 0:02:59]} 10. Nc3 {[%clk 0:03:01]}  Re8 {[%clk 0:02:49]} 11. Bf4 {[%clk 0:03:00]}  Nh5 {[%clk 0:02:49]} 12. Be3 {[%clk 0:02:56]}  Rb8 {[%clk 0:02:45]} 13. Qd2 {[%clk 0:02:46]}  e5 {[%clk 0:02:42]} 14. dxe5 {[%clk 0:02:45]}  Bxe5 {[%clk 0:02:43]} 15. Bxa7 {[%clk 0:02:37]}  Rb7 {[%clk 0:02:25]} 16. Bd4 {[%clk 0:02:35]}  Bxd4 {[%clk 0:02:11]} 17. Qxd4 {[%clk 0:02:36]}  Rxb2 {[%clk 0:02:12]} 18. a4 {[%clk 0:02:28]}  Qf6 {[%clk 0:02:09]} 19. Qxf6 {[%clk 0:02:10]}  Nxf6 {[%clk 0:02:10]} 20. e3 {[%clk 0:02:10]}  Ba6 {[%clk 0:02:03]} 21. Rfc1 {[%clk 0:02:10]}  Reb8 {[%clk 0:02:03]} 22. Bf1 {[%clk 0:02:06]}  Bxf1 {[%clk 0:02:02]} 23. Kxf1 {[%clk 0:02:07]}  Ng4 {[%clk 0:02:02]} 24. Nd1 {[%clk 0:02:05]}  Rd2 {[%clk 0:01:39]} 25. a5 {[%clk 0:01:48]}  Ne5 {[%clk 0:01:30]} 26. a6 {[%clk 0:01:45]}  Ra8 {[%clk 0:01:04]} 27. a7 {[%clk 0:01:42]}  Kg7 {[%clk 0:01:03]} 28. Rcb1 {[%clk 0:01:32]}  Nc4 {[%clk 0:00:52]} 29. Ke1 {[%clk 0:01:27]}  Rc2 {[%clk 0:00:29]} 30. Rb8 {[%clk 0:01:24]}  Rxa7 {[%clk 0:00:28]} 31. Rxa7 {[%clk 0:01:24]}  Ne5 {[%clk 0:00:29]} 32. Kf1 {[%clk 0:01:09]}  Rc1 {[%clk 0:00:25]} 33. Ke2 {[%clk 0:01:09]}  Rc2+ {[%clk 0:00:26]} 34. Ke1 {[%clk 0:01:04]}  Nd3+ {[%clk 0:00:19]} 35. Kf1 {[%clk 0:01:04]}  Rd2 {[%clk 0:00:20]} 36. Nc3 {[%clk 0:01:01]}  Rxf2+ {[%clk 0:00:20]} 37. Kg1 {[%clk 0:01:02]}  Rc2 {[%clk 0:00:20]} 38. Na4 {[%clk 0:01:00]}  Rc1+ {[%clk 0:00:21]} 39. Kg2 {[%clk 0:01:01]}  Rc2+ {[%clk 0:00:21]} 40. Kf1 {[%clk 0:01:01]}  Rf2+ {[%clk 0:00:20]} 41. Kg1 {[%clk 0:01:01]}  Re2 {[%clk 0:00:18]} 42. Rb6 {[%clk 0:01:01]}  Re1+ {[%clk 0:00:19]} 43. Kg2 {[%clk 0:01:00]}  Re2+ {[%clk 0:00:20]} 44. Kf1 {[%clk 0:01:00]}  Re1+ {[%clk 0:00:20]} 45. Kg2 {[%clk 0:01:00]}  Re2+ {[%clk 0:00:21]} 46. Kh3 {[%clk 0:01:01]}  Nf2+ {[%clk 0:00:21]} 47. Kg2 {[%clk 0:01:00]}  Nd3+ {[%clk 0:00:19]} 1/2-1/2


[Site "https://www.chess.com"]

[Event "Titled Tuesday Blitz March 01 Early 2022"]
[White "Iskusnyh, Sergei"]
[Black "Rozhkov, Viacheslav"]
[WhiteFideId "4120027"]
[BlackFideId "4181484"]
[WhiteElo "2492"]
[BlackElo "2324"]
[Result "1-0"]
[Round "11"]
[TimeControl "180+1"]
[Date "2022.03.01"]
[WhiteClock "0:02:06"]
[BlackClock "0:00:30"]

1. d4 {[%clk 0:03:00]}  d5 {[%clk 0:02:59]} 2. c4 {[%clk 0:03:01]}  dxc4 {[%clk 0:02:59]} 3. e3 {[%clk 0:02:57]}  Nf6 {[%clk 0:02:57]} 4. Bxc4 {[%clk 0:02:56]}  a6 {[%clk 0:02:57]} 5. Nf3 {[%clk 0:02:56]}  e6 {[%clk 0:02:56]} 6. O-O {[%clk 0:02:55]}  c5 {[%clk 0:02:56]} 7. Nc3 {[%clk 0:02:54]}  b5 {[%clk 0:02:55]} 8. Be2 {[%clk 0:02:54]}  Bb7 {[%clk 0:02:54]} 9. dxc5 {[%clk 0:02:53]}  Bxc5 {[%clk 0:02:53]} 10. Qxd8+ {[%clk 0:02:51]}  Kxd8 {[%clk 0:02:54]} 11. Nd2 {[%clk 0:02:50]}  Nbd7 {[%clk 0:02:52]} 12. Nb3 {[%clk 0:02:50]}  Bb6 {[%clk 0:02:33]} 13. a4 {[%clk 0:02:49]}  b4 {[%clk 0:02:32]} 14. a5 {[%clk 0:02:49]}  bxc3 {[%clk 0:02:26]} 15. axb6 {[%clk 0:02:49]}  Nxb6 {[%clk 0:02:25]} 16. bxc3 {[%clk 0:02:45]}  Kc7 {[%clk 0:02:17]} 17. Na5 {[%clk 0:02:36]}  Bd5 {[%clk 0:02:01]} 18. c4 {[%clk 0:02:34]}  Bc6 {[%clk 0:01:28]} 19. Bb2 {[%clk 0:02:31]}  Be4 {[%clk 0:00:45]} 20. f3 {[%clk 0:02:21]}  Bg6 {[%clk 0:00:40]} 21. Be5+ {[%clk 0:02:18]}  Kc8 {[%clk 0:00:36]} 22. e4 {[%clk 0:02:17]}  Nbd7 {[%clk 0:00:31]} 23. Bd6 {[%clk 0:02:15]}  Ne8 {[%clk 0:00:30]} 24. Be7 {[%clk 0:02:06]} 1-0


[Site "https://www.chess.com"]